Workbook

Sheet 1. Forside
A1: Tønder Spildevand A/S
D8: Bilag A
D13: Indholdsfortegnelse
C16: Fane nr. 2 | D16: Samlet prisloft
C17: Fane nr. 3 | D17: Driftsomkostninger
C18: Fane nr. 4 | D18: Historiske investeringer
C19: Fane nr. 5 | D19: Gennemførte investeringer
C20: Fane nr. 6 | D20: Korrektion investeringer
C21: Fane nr. 7 | D21: Planlagte investeringer
C22: Fane nr. 8 | D22: 1:1 omkostninger
C23: Fane nr. 9 | D23: Miljø- og servicemål
C24: Fane nr. 10 | D24: Klimatilpasning
C25: Fane nr. 11 | D25: Nettofinansielle poster
C26: Fane nr. 12 | D26: Over- eller underdækning
C27: Fane nr. 13 | D27: Kontrol med indtægtsrammen og oversigt over ekstraordinære effektiviseringsgevinster

Sheet 2. Samlet prisloft
A1: ='1. Forside'!A1 -> Tønder Spildevand A/S
B4: Fane 2. Samlet prisloft for 2015
B6: Driftsomkostninger
B7: Korrigerede driftsomkostninger i prisloftet for 2014 | C7: ='3. Driftsomkostninger'!C22 -> 28304602.36 | D7: kr.
B8: Bortfald af væsentlige omkostninger | C8: =-'3. Driftsomkostninger'!C27 -> 0 | D8: kr.
B9: Korrektion for periodevise driftsomkostninger | C9: ='3. Driftsomkostninger'!C33 -> -210576 | D9: kr.
B10: Korrektion for prisudviklingen 2014-2015 | C10: ='3. Driftsomkostninger'!C39 -> 22475.22109 | D10: kr.
B11: Forhøjelse til effektivt niveau iht. benchmarkingen | C11: ='3. Driftsomkostninger'!C45 -> 0 | D11: kr.
B12: Korrektion for generelt effektiviseringskrav | C12: =-'3. Driftsomkostninger'!C51 -> -123613.716 | D12: kr.
B13: Korrektion for individuelt effektiviseringskrav | C13: =-'3. Driftsomkostninger'!C60 -> -838606.6662 | D13: kr.
B14: Driftsomkostninger i alt | C14: =SUM(C7:C13) -> 27154281.2 | D14: kr. | E14: =C14 -> 27154281.2 | F14: kr.
B15: Investeringer
B16: Tillæg for historiske investeringer | C16: ='4. Historiske investeringer'!C9 -> 39947847.8 | D16: kr.
B17: Tillæg for gennemførte investeringer i 2011-2013 | C17: ='5. Gennemførte investeringer'!F101 -> 2984123.498 | D17: kr.
B18: Korrektion af tillæg for planlagte investeringer vedrørende 2013 | C18: ='6. Korrektion investeringer'!C10 -> 570019.61 | D18: kr.
B19: Tillæg for planlagte investeringer i 2014 og 2015 | C19: ='7. Planlagte investeringer'!F112 -> 1900045 | D19: kr.
B20: Investeringstillæg i alt | C20: =SUM(C16:C19) -> 45402035.91 | D20: kr. | E20: =C20 -> 45402035.91 | F20: kr.
B21: Øvrige omkostninger mv.
B22: Tillæg for 1:1 omkostninger i 2015 | C22: ='8. 1-1 omkostninger'!C12 -> 1856029 | D22: kr.
B23: Tillæg vedr. revisorerklæringer og DANVA/FVD-kontingent | C23: ='8. 1-1 omkostninger'!C18 -> 152800 | D23: kr.
B24: Korrektion ift. faktiske 1:1 omkostninger i 2013 | C24: ='8. 1-1 omkostninger'!C24 -> -1205484 | D24: kr.
B25: Tillæg for driftsomkostninger til miljø- og servicemål i 2015 | C25: ='9. Miljø- og servicemål'!C8 -> 300000 | D25: kr.
B26: Korrektion ift. faktiske driftsomkostninger til miljø- og servicemål i 2013 | C26: ='9. Miljø- og servicemål'!C14 -> 0 | D26: kr.
B27: Tillæg for driftsomkostninger til medfinansiering af klimatilpasningsprojekter i 2015 | C27: ='10. Klimatilpasning'!C9 -> 0 | D27: kr.
B28: Korrektion ift. faktiske omkostninger til medfinansiering af klimatilpasningsprojekter i 2013 | C28: ='10. Klimatilpasning'!C15 -> 0 | D28: kr.
B29: Tillæg/fradrag for nettofinansielle poster i 2015 | C29: ='11. Nettofinansielle poster'!C9 -> 1447099 | D29: kr.
B30: Korrektion ift. faktiske nettofinansielle poster i 2013 | C30: ='11. Nettofinansielle poster'!C15 -> 1035099 | D30: kr.
B31: Øvrige omkostninger mv. i alt | C31: =SUM(C22:C30) -> 3585543 | D31: kr. | E31: =C31 -> 3585543 | F31: kr.
B32: Historisk over- eller underdækning
B33: Tillæg/fradrag for over- eller underdækning til og med 2010 | C33: ='12. Over- eller underdækning'!C11 -> -738993.373 | D33: kr. | E33: =C33 -> -738993.373 | F33: kr.
B34: Korrektion i forhold til tidligere indtægtsramme
B35: Korrektion for overholdelse af indtægtsramme i prisloft 2013 | C35: ='13. Kontrol med indtægtsrammen'!E28 -> 9397088.28 | D35: kr. | E35: =C35 -> 9397088.28 | F35: kr.
B36: Samlet prisloft
B37: Indtægtsramme i 2015 | E37: =SUM(E14:E35) -> 84799955.01 | F37: kr.
B38: Debiteret vandmængde i 2013 | E38: 1845276 | F38: m3
B39: Prisloft 2015 | E39: =E37/E38 -> 45.95516064 | F39: kr./m3

Sheet 3. Driftsomkostninger
A1: ='1. Forside'!A1 -> Tønder Spildevand A/S
B4: Fane 3. Driftsomkostninger
B6: Driftsomkostningerne i prisloftet for 2014
B7: Korrigerede driftsomkostninger i prisloftet for 2013 (DOiPL 2013) | C7: 26200714.94 | D7: kr.
B8: Tillæg i henhold til § 8, stk. 2, pkt. 1 | C8: 4309719.713 | D8: kr.
B9: Prisfremskrivning 1,5 pct. | C9: =0.015*SUM(C7:C8) -> 457656.5199 | D9: kr.
B10: Generelt effektiviseringskrav (0 pct.) | C10: 0 | D10: kr.
B11: Korrektion af periodevise driftsomkostninger iht. § 8, stk. 2 | C11: -2596255 | D11: kr.
B12: Individuelt effektiviseringskrav | C12: -1525522 | D12: kr.
B13: Driftsomkostningerne i prisloftet for 2014 | C13: =SUM(C7:C12) -> 26846314.18 | D13: kr.
B14: Udtræk af korrektion af periodevise driftsomkostninger | C14: 2596255 | D14: kr.
B15: Driftsomkostningerne i prisloftet for 2014 (DOiPL 2014) | C15: =C13+C14 -> 29442569.18 | D15: kr.
B18: Forskel i § 8, stk. 2, pkt. 1 - tillæg
B19: Godkendt tillæg i PL2014 prisfremskrevet til 2014-niveau | C19: 4374365.509 | D19: kr.
B20: Godkendt tillæg i PL2015 prisfremskrevet til 2014-niveau | C20: 3236398.689 | D20: kr.
B21: Forskel | C21: =C20-C19 -> -1137966.82 | D21: kr.
B22: Korrigerede driftsomkostninger i prisloftet for 2014 | C22: =C15+C21 -> 28304602.36 | D22: kr.
B25: Korrektion for forventet bortfald af væsentlige omkostninger
B26: Selskabets indberettede bortfald af væsentlige omkostninger inden 2015 | C26: 0 | D26: kr.
B27: Korrektion for forventet bortfald | C27: =SUM(C26:C26) -> 0 | D27: kr.
B30: Korrektion for periodevise driftsomkostninger
B31: Del af godkendt tillæg i PL2013 vedrørende omkostninger i 2013 | C31: 2366231 | D31: kr.
B32: Faktisk udgift til periodevise driftsomkostninger i 2013 | C32: 2155655 | D32: kr.
B33: Korrektion for periodevise driftsomkostninger | C33: =C32-C31 -> -210576 | D33: kr.
B36: Korrektion for prisudviklingen fra 2014-2015
B37: Driftsomkostningerne i prisloftet for 2014 | C37: =C22-C27+C33 -> 28094026.36 | D37: kr.
B38: Prisudvikling 2014 - 2015 | C38: 0.08 | D38: pct.
B39: Korrektion for prisudvikling | C39: =C37*(C38/100) -> 22475.22109 | D39: kr.
B42: Eventuel forhøjelse til effektivt niveau iht. benchmarkingen
B43: Selskabets effektive driftsomkostninger iht. benchmarkingen | C43: 21033997.02 | D43: kr.
B44: Selskabets pristalskorrigerede driftsomkostninger i 2015-niveau | C44: =C37+C39 -> 28116501.58 | D44: kr.
B45: Eventuel forhøjelse til effektivt niveau | C45: =IF(C44>C43,0,C43-C44) -> 0 | D45: kr.
B48: Korrektion for generelt effektiviseringskrav
B49: Driftsomkostningerne i prisloftet for 2014 | C49: =C37 -> 28094026.36 | D49: kr.
B50: Generelt effektiviseringskrav | C50: 0.44 | D50: pct.
B51: Endeligt generelt effektiviseringskrav | C51: =C49*(C50/100) -> 123613.716 | D51: kr.
B54: Korrektion for individuelt effektiviseringskrav
B55: Rå effektiviseringspotentiale | C55: 7127454.312 | D55: kr.
B56: Effektiviseringspotentiale efter eventuel korrektion for særlige forhold | C56: 7060028.65 | D56: kr.
B57: Effektiviseringspotentiale efter forsigtighedshensyn | C57: 3354426.665 | D57: kr.
B58: Effektiviseringspotentiale efter eventuel korrektion for sammensætning af signifikante costdrivere | C58: 3354426.665 | D58: kr.
B59: Umiddelbart effektiviseringskrav | C59: =C58/4 -> 838606.6662 | D59: kr.
B60: Endeligt individuelt effektiviseringskrav | C60: =IF(C59>0.05*C37,0.05*C37,IF(C59<0.01*C37,0,C59)) -> 838606.6662 | D60: kr.

Sheet 4. Historiske investeringer
A1: ='3. Driftsomkostninger'!A1 -> Tønder Spildevand A/S
B4: Fane 4. Historiske investeringer
B6: Tillæg for historiske investeringer
B7: Værdi af selskabets materielle anlægsaktiver pr. 1. januar 2010 | C7: 1697491025 | D7: kr.
B8: Den årlige standardafskrivning på de materielle anlægsaktiver iht. POLKA | C8: 39947847.8 | D8: kr.
B9: Tillæg i alt i 2015 | C9: =C8 -> 39947847.8 | D9: kr.

Sheet 5. Gennemførte investeringer
A1: ='4. Historiske investeringer'!A1 -> Tønder Spildevand A/S
B4: Fane 5. Gennemførte investeringer i 2010 - 2013
B6: Tillæg for gennemførte investeringer i 2013
B7: Beskrivelse af investeringen | C7: Årstal | D7: Std. levetid (år) | E7: Anskaffelses-pris (kr.) | F7: Afskrivning
B8: Ledningsnet = Ø 200 mm | C8: 2013 | D8: 75 | E8: 339573 | F8: =E8/D8 -> 4527.64 | G8: kr.
B9: Ø 200 mm < Ledningsnet = Ø 500 mm | C9: 2013 | D9: 75 | E9: 572477 | F9: 7633.026667 | G9: kr.
B10: Brønde | C10: 2013 | D10: 75 | E10: 40416 | F10: 538.88 | G10: kr.
B11: Ledningsnet = Ø 200 mm | C11: 2013 | D11: 75 | E11: 55272 | F11: 736.96 | G11: kr.
B12: Brønde | C12: 2013 | D12: 75 | E12: 115751 | F12: 1543.346667 | G12: kr.
B13: Ledningsnet = Ø 200 mm | C13: 2013 | D13: 75 | E13: 17893 | F13: 238.5733333 | G13: kr.
B14: Ø 200 mm < Ledningsnet = Ø 500 mm | C14: 2013 | D14: 75 | E14: 303115 | F14: 4041.533333 | G14: kr.
B15: Ø 500 mm < Ledningsnet = Ø 800 mm | C15: 2013 | D15: 75 | E15: 18988 | F15: =E15/D15 -> 253.1733333 | G15: kr.
B16: Brønde | C16: 2013 | D16: 75 | E16: 8192 | F16: 109.2266667 | G16: kr.
B17: Brønde | C17: 2013 | D17: 75 | E17: 8465 | F17: 112.8666667 | G17: kr.
B18: Ledningsnet = Ø 200 mm | C18: 2013 | D18: 75 | E18: 30435 | F18: 405.8 | G18: kr.
B19: Brønde | C19: 2013 | D19: 75 | E19: 14527 | F19: 193.6933333 | G19: kr.
B20: Ledningsnet = Ø 200 mm | C20: 2013 | D20: 75 | E20: 136268 | F20: 1816.906667 | G20: kr.
B21: Tryksatte minipumpestationer (husstandssystemer) | C21: 2013 | D21: 30 | E21: 21259 | F21: 708.6333333 | G21: kr.
B22: Ledningsnet = Ø 200 mm | C22: 2013 | D22: 75 | E22: 33058 | F22: 440.7733333 | G22: kr.
B23: Tryksatte minipumpestationer (husstandssystemer) | C23: 2013 | D23: 30 | E23: 69051 | F23: 2301.7 | G23: kr.
B24: Brønde | C24: 2013 | D24: 75 | E24: 1426362 | F24: 19018.16 | G24: kr.
B25: Ledningsnet = Ø 200 mm | C25: 2013 | D25: 75 | E25: 7277556 | F25: 97034.08 | G25: kr.
B26: Pumpestationer i brønde (< 6,25 m2), Konstruktioner | C26: 2013 | D26: 50 | E26: 7643420 | F26: 152868.4 | G26: kr.
B27: Pumpestationer i brønde (< 6,25 m2), Mek/EL | C27: 2013 | D27: 20 | E27: 1841788 | F27: 92089.4 | G27: kr.
B28: Pumpestationer i brønde (< 6,25 m2), SRO | C28: 2013 | D28: 10 | E28: 460447 | F28: 46044.7 | G28: kr.
B29: Tryksatte minipumpestationer (husstandssystemer) | C29: 2013 | D29: 30 | E29: 286500 | F29: 9550 | G29: kr.
B30: Brønde | C30: 2013 | D30: 75 | E30: 545834 | F30: 7277.786667 | G30: kr.
B31: Ledningsnet = Ø 200 mm | C31: 2013 | D31: 75 | E31: 1257622 | F31: 16768.29333 | G31: kr.
B32: Ø 200 mm < Ledningsnet = Ø 500 mm | C32: 2013 | D32: 75 | E32: 331990 | F32: 4426.533333 | G32: kr.
B33: Brønde | C33: 2013 | D33: 75 | E33: 5510 | F33: 73.46666667 | G33: kr.
B34: Ledningsnet = Ø 200 mm | C34: 2013 | D34: 75 | E34: 2536 | F34: 33.81333333 | G34: kr.
B35: Ø 200 mm < Ledningsnet = Ø 500 mm | C35: 2013 | D35: 75 | E35: 4534 | F35: 60.45333333 | G35: kr.
B36: Brønde | C36: 2013 | D36: 75 | E36: 435347 | F36: 5804.626667 | G36: kr.
B37: Ledningsnet = Ø 200 mm | C37: 2013 | D37: 75 | E37: 869 | F37: 11.58666667 | G37: kr.
B38: Ø 200 mm < Ledningsnet = Ø 500 mm | C38: 2013 | D38: 75 | E38: 214415 | F38: 2858.866667 | G38: kr.
B39: Brønde | C39: 2013 | D39: 75 | E39: 90301 | F39: 1204.013333 | G39: kr.
B40: Ledningsnet = Ø 200 mm | C40: 2013 | D40: 75 | E40: 237226 | F40: 3163.013333 | G40: kr.
B41: Brønde | C41: 2013 | D41: 75 | E41: 47825 | F41: 637.6666667 | G41: kr.
B42: Ledningsnet = Ø 200 mm | C42: 2013 | D42: 75 | E42: 23575 | F42: 314.3333333 | G42: kr.
B43: Ledningsnet = Ø 200 mm | C43: 2013 | D43: 75 | E43: 123980 | F43: 1653.066667 | G43: kr.
B44: Beluftningstanke, Mek/EL | C44: 2013 | D44: 20 | E44: 247163 | F44: 12358.15 | G44: kr.
B45: Beluftningstanke, SRO | C45: 2013 | D45: 10 | E45: 37127 | F45: 3712.7 | G45: kr.
B46: Pumpestationer i brønde (< 6,25 m2), Konstruktioner | C46: 2013 | D46: 50 | E46: 957777 | F46: 19155.54 | G46: kr.
B47: Pumpestationer i brønde (< 6,25 m2), Mek/EL | C47: 2013 | D47: 20 | E47: 430461 | F47: 21523.05 | G47: kr.
B48: Pumpestationer i brønde (< 6,25 m2), SRO | C48: 2013 | D48: 10 | E48: 125551 | F48: 12555.1 | G48: kr.
B49: Pumpestationer m. overbygning (< 20 m2), Mek/EL | C49: 2013 | D49: 20 | E49: 176967 | F49: 8848.35 | G49: kr.
B50: Tryksatte minipumpestationer (husstandssystemer) | C50: 2013 | D50: 30 | E50: 28697 | F50: 956.5666667 | G50: kr.
B51: Brønde | C51: 2013 | D51: 75 | E51: 29609 | F51: 394.7866667 | G51: kr.
B52: Ledningsnet = Ø 200 mm | C52: 2013 | D52: 75 | E52: 108187 | F52: 1442.493333 | G52: kr.
B53: Tryksatte minipumpestationer (husstandssystemer) | C53: 2013 | D53: 30 | E53: 43331 | F53: 1444.366667 | G53: kr.
B54: Brønde | C54: 2013 | D54: 75 | E54: 35711 | F54: 476.1466667 | G54: kr.
B55: Ledningsnet = Ø 200 mm | C55: 2013 | D55: 75 | E55: 3985 | F55: 53.13333333 | G55: kr.
B56: Tryksatte minipumpestationer (husstandssystemer) | C56: 2013 | D56: 30 | E56: 52261 | F56: 1742.033333 | G56: kr.
B57: Brønde | C57: 2013 | D57: 75 | E57: 27747 | F57: 369.96 | G57: kr.
B58: Ledningsnet = Ø 200 mm | C58: 2013 | D58: 75 | E58: 175880 | F58: 2345.066667 | G58: kr.
B59: Tryksatte minipumpestationer (husstandssystemer) | C59: 2013 | D59: 30 | E59: 40606 | F59: 1353.533333 | G59: kr.
B60: Køretøjer, entreprenørmaskiner | C60: 2013 | D60: 5 | E60: 118112 | F60: 23622.4 | G60: kr.
B61: Køretøjer, entreprenørmaskiner | C61: 2013 | D61: 5 | E61: 118500 | F61: 23700 | G61: kr.
B62: Brønde | C62: 2013 | D62: 75 | E62: 1199065 | F62: 15987.53333 | G62: kr.
B63: Indløb-/udløbsarrangement | C63: 2013 | D63: 75 | E63: 219341 | F63: 2924.546667 | G63: kr.
B64: Jordbassin Klasse A | C64: 2013 | D64: 50 | E64: 2822190 | F64: 56443.8 | G64: kr.
B65: Ledningsnet = Ø 200 mm | C65: 2013 | D65: 75 | E65: 1682204 | F65: 22429.38667 | G65: kr.
B66: Pumpestationer i brønde (< 6,25 m2), Konstruktioner | C66: 2013 | D66: 50 | E66: 910266 | F66: 18205.32 | G66: kr.
B67: Pumpestationer i brønde (< 6,25 m2), Mek/EL | C67: 2013 | D67: 20 | E67: 219341 | F67: 10967.05 | G67: kr.
B68: Pumpestationer i brønde (< 6,25 m2), SRO | C68: 2013 | D68: 10 | E68: 54835 | F68: 5483.5 | G68: kr.
B69: Tryksatte minipumpestationer (husstandssystemer) | C69: 2013 | D69: 30 | E69: 43868 | F69: 1462.266667 | G69: kr.
B70: Ø 200 mm < Ledningsnet = Ø 500 mm | C70: 2013 | D70: 75 | E70: 281733 | F70: 3756.44 | G70: kr.
B71: Ø 500 mm < Ledningsnet = Ø 800 mm | C71: 2013 | D71: 75 | E71: 37674 | F71: 502.32 | G71: kr.
B72: Brønde | C72: 2013 | D72: 75 | E72: 2203014 | F72: 29373.52 | G72: kr.
B73: Ledningsnet = Ø 200 mm | C73: 2013 | D73: 75 | E73: 9425555 | F73: 125674.0667 | G73: kr.
B74: Pumpestationer i brønde (< 6,25 m2), Konstruktioner | C74: 2013 | D74: 50 | E74: 2157949 | F74: 43158.98 | G74: kr.
B75: Pumpestationer i brønde (< 6,25 m2), Mek/EL | C75: 2013 | D75: 20 | E75: 519988 | F75: 25999.4 | G75: kr.
B76: Pumpestationer i brønde (< 6,25 m2), SRO | C76: 2013 | D76: 10 | E76: 129997 | F76: 12999.7 | G76: kr.
B77: Tryksatte minipumpestationer (husstandssystemer) | C77: 2013 | D77: 30 | E77: 138663 | F77: 4622.1 | G77: kr.
B78: Sand- og fedtfang, Mek/EL | C78: 2013 | D78: 20 | E78: 419158 | F78: 20957.9 | G78: kr.
B79: Slutafvanding, slam - højteknologisk (centrifuger), Konstruktioner | C79: 2013 | D79: 60 | E79: 2025930 | F79: 33765.5 | G79: kr.
B80: Slutafvanding, slam - højteknologisk (centrifuger), Mek/El | C80: 2013 | D80: 20 | E80: 1938605 | F80: 96930.25 | G80: kr.
B81: Slutafvanding, slam - højteknologisk (centrifuger), SRO | C81: 2013 | D81: 10 | E81: 157184 | F81: 15718.4 | G81: kr.
B82: Ledningsnet = Ø 200 mm | C82: 2013 | D82: 75 | E82: 1400423 | F82: 18672.30667 | G82: kr.
B83: Brønde | C83: 2013 | D83: 75 | E83: 107271 | F83: 1430.28 | G83: kr.
B84: Ledningsnet = Ø 200 mm | C84: 2013 | D84: 75 | E84: 438894 | F84: 5851.92 | G84: kr.
B85: Ø 1000 mm < Ledningsnet = Ø 1200 mm | C85: 2013 | D85: 75 | E85: 288531 | F85: 3847.08 | G85: kr.
B86: Ø 200 mm < Ledningsnet = Ø 500 mm | C86: 2013 | D86: 75 | E86: 11350 | F86: 151.3333333 | G86: kr.
B87: Ø 500 mm < Ledningsnet = Ø 800 mm | C87: 2013 | D87: 75 | E87: 8405 | F87: 112.0666667 | G87: kr.
B88: Mindre renseanlæg < 5.000 PE uden mulighed for opdeling | C88: 2013 | D88: 40 | E88: 415763 | F88: 10394.075 | G88: kr.
B89: Brønde | C89: 2013 | D89: 75 | E89: 84392 | F89: 1125.226667 | G89: kr.
B90: Ledningsnet = Ø 200 mm | C90: 2013 | D90: 75 | E90: 219336 | F90: 2924.48 | G90: kr.
B91: Brønde | C91: 2013 | D91: 75 | E91: 379102 | F91: 5054.693333 | G91: kr.
B92: Ledningsnet = Ø 200 mm | C92: 2013 | D92: 75 | E92: 97130 | F92: 1295.066667 | G92: kr.
B93: Ø 200 mm < Ledningsnet = Ø 500 mm | C93: 2013 | D93: 75 | E93: 549690 | F93: 7329.2 | G93: kr.
B94: Brønde | C94: 2013 | D94: 75 | E94: 178802 | F94: 2384.026667 | G94: kr.
B95: Mindre renseanlæg < 5.000 PE uden mulighed for opdeling | C95: 2013 | D95: 10 | E95: 1728883 | F95: 172888.3 | G95: kr.
B96: Mindre renseanlæg < 5.000 PE uden mulighed for opdeling | C96: 2013 | D96: 10 | E96: 1456210 | F96: 145621 | G96: kr.
B97: Mindre renseanlæg < 5.000 PE uden mulighed for opdeling | C97: 2013 | D97: 10 | E97: 448472 | F97: 44847.2 | G97: kr.
B98: Mindre renseanlæg < 5.000 PE uden mulighed for opdeling | C98: 2013 | D98: 10 | E98: 179047 | F98: 17904.7 | G98: kr.
B99: Tillæg for 2013 | F99: =SUM(F8:F98) -> 1611743.305 | G99: kr.
B100: Tillæg for 2010 - 2012 | F100: 1372380.193 | G100: kr.
B101: Samlet tillæg for gennemførte investeringer | F101: =F99+F100 -> 2984123.498 | G101: kr.

Sheet 6. Korrektion investeringer
A1: ='5. Gennemførte investeringer'!A1 -> Tønder Spildevand A/S
B4: Fane 6. Korrektion af tillæg for planlagte investeringer
B6: Korrektion af tillæg for planlagte investeringer vedr. 2013
B7: Tillæg for planlagte investeringer i 2013 i prisloft 2013 | C7: 838507 | D7: kr.
B8: Tillæg for planlagte investeringer i 2013 i prisloft 2014 | C8: 1814960 | D8: kr.
B9: Selskabets faktiske afskrivninger på gennemførte investeringer i 2013 | C9: ='5. Gennemførte investeringer'!F99 -> 1611743.305 | D9: kr.
B10: Korrektion af tillæg for planlagte investeringer vedr. 2013 | C10: =C9-C7+C9-C8 -> 570019.61 | D10: kr.

Sheet 7. Planlagte investeringer
A1: ='6. Korrektion investeringer'!A1 -> Tønder Spildevand A/S
B4: Fane 7. Planlagte investeringer
B6: Tillæg for planlagte investeringer i 2014 og 2015
B7: Beskrivelse af investeringen | C7: Årstal | D7: Std. levetid (år) | E7: Anskaffelses-pris (kr.) | F7: Afskrivning
B8: Brønde | C8: 2014 | D8: 75 | E8: 75000 | F8: =E8/D8 -> 1000 | G8: kr.
B9: Ø 200 mm < Ledningsnet = Ø 500 mm | C9: 2014 | D9: 75 | E9: 505000 | F9: =E9/D9 -> 6733.333333 | G9: kr.
B10: Pumpestationer i brønde (< 6,25 m2), Konstruktioner | C10: 2014 | D10: 50 | E10: 70000 | F10: 1400 | G10: kr.
B11: Pumpestationer i brønde (< 6,25 m2), Mek/EL | C11: 2014 | D11: 20 | E11: 20000 | F11: 1000 | G11: kr.
B12: Pumpestationer i brønde (< 6,25 m2), SRO | C12: 2014 | D12: 10 | E12: 30000 | F12: 3000 | G12: kr.
B13: Strømpeforing = Ø 200 mm | C13: 2014 | D13: 50 | E13: 50000 | F13: 1000 | G13: kr.
B14: Strømpeforing Ø 200 mm < Ledningsnet = Ø 500 mm | C14: 2014 | D14: 50 | E14: 750000 | F14: 15000 | G14: kr.
B15: Brønde | C15: 2014 | D15: 75 | E15: 70000 | F15: 933.3333333 | G15: kr.
B16: Strømpeforing = Ø 200 mm | C16: 2014 | D16: 50 | E16: 50000 | F16: 1000 | G16: kr.
B17: Strømpeforing Ø 200 mm < Ledningsnet = Ø 500 mm | C17: 2014 | D17: 50 | E17: 240000 | F17: 4800 | G17: kr.
B18: Strømpeforing = Ø 200 mm | C18: 2014 | D18: 50 | E18: 225000 | F18: 4500 | G18: kr.
B19: Strømpeforing = Ø 200 mm | C19: 2014 | D19: 50 | E19: 125000 | F19: 2500 | G19: kr.
B20: Ledningsnet = Ø 200 mm | C20: 2014 | D20: 75 | E20: 300000 | F20: 4000 | G20: kr.
B21: Ledningsnet = Ø 200 mm | C21: 2014 | D21: 75 | E21: 75000 | F21: 1000 | G21: kr.
B22: Strømpeforing Ø 200 mm < Ledningsnet = Ø 500 mm | C22: 2014 | D22: 50 | E22: 250000 | F22: 5000 | G22: kr.
B23: Pumpestationer i brønde (< 6,25 m2), Konstruktioner | C23: 2014 | D23: 50 | E23: 900000 | F23: 18000 | G23: kr.
B24: Pumpestationer i brønde (< 6,25 m2), Mek/EL | C24: 2014 | D24: 20 | E24: 200000 | F24: 10000 | G24: kr.
B25: Pumpestationer i brønde (< 6,25 m2), SRO | C25: 2014 | D25: 10 | E25: 100000 | F25: 10000 | G25: kr.
B27: Tryksatte minipumpestationer (husstandssystemer) | C27: 2014 | D27: 30 | E27: 96000 | F27: 3200 | G27: kr.
B28: Ø 200 mm < Ledningsnet = Ø 500 mm | C28: 2014 | D28: 75 | E28: 400000 | F28: 5333.333333 | G28: kr.
B29: Tryksatte minipumpestationer (husstandssystemer) | C29: 2014 | D29: 30 | E29: 96000 | F29: 3200 | G29: kr.
B31: Mindre renseanlæg < 5.000 PE uden mulighed for opdeling | C31: 2014 | D31: 40 | E31: 306000 | F31: 7650 | G31: kr.
B32: Indløb med riste, Konstruktioner | C32: 2014 | D32: 60 | E32: 3500000 | F32: 58333.33333 | G32: kr.
B33: Indløb med riste, Mek/EL | C33: 2014 | D33: 20 | E33: 150000 | F33: 7500 | G33: kr.
B34: Indløb med riste, SRO | C34: 2014 | D34: 10 | E34: 937500 | F34: 93750 | G34: kr.
B35: Efterbehandlingsanlæg (sandfilter), Konstruktioner | C35: 2014 | D35: 60 | E35: 4592500 | F35: 76541.66667 | G35: kr.
B36: Ledningsnet = Ø 200 mm | C36: 2014 | D36: 75 | E36: 30000 | F36: 400 | G36: kr.
B37: Brønde | C37: 2014 | D37: 75 | E37: 5000 | F37: 66.66666667 | G37: kr.
B38: Pumpestationer i brønde (< 6,25 m2), Konstruktioner | C38: 2014 | D38: 50 | E38: 105000 | F38: 2100 | G38: kr.
B39: Pumpestationer i brønde (< 6,25 m2), Mek/EL | C39: 2014 | D39: 20 | E39: 155000 | F39: 7750 | G39: kr.
B40: Pumpestationer i brønde (< 6,25 m2), SRO | C40: 2014 | D40: 10 | E40: 5000 | F40: 500 | G40: kr.
B41: Ledningsnet = Ø 200 mm | C41: 2014 | D41: 75 | E41: 60000 | F41: 800 | G41: kr.
B42: Brønde | C42: 2014 | D42: 75 | E42: 15000 | F42: 200 | G42: kr.
B43: Forsinkelsesbassiner, lukkede med automatisk rensning og SRO Miljøklasse A (500-1.000 m3) - Konstruktioner | C43: 2014 | D43: 75 | E43: 555000 | F43: 7400 | G43: kr.
B44: Pumpestationer i brønde (< 6,25 m2), Konstruktioner | C44: 2014 | D44: 50 | E44: 130000 | F44: 2600 | G44: kr.
B45: Pumpestationer i brønde (< 6,25 m2), Mek/EL | C45: 2014 | D45: 20 | E45: 55000 | F45: 2750 | G45: kr.
B46: Pumpestationer i brønde (< 6,25 m2), SRO | C46: 2014 | D46: 10 | E46: 100000 | F46: 10000 | G46: kr.
B47: Ledningsnet = Ø 200 mm | C47: 2014 | D47: 75 | E47: 115000 | F47: 1533.333333 | G47: kr.
B48: Forsinkelsesbassiner, lukkede med automatisk rensning og SRO Miljøklasse A (500-1.000 m3) - Konstruktioner | C48: 2014 | D48: 75 | E48: 2805000 | F48: 37400 | G48: kr.
B49: Pumpestationer i brønde (< 6,25 m2), Konstruktioner | C49: 2014 | D49: 50 | E49: 100000 | F49: 2000 | G49: kr.
B50: Pumpestationer i brønde (< 6,25 m2), Mek/EL | C50: 2014 | D50: 20 | E50: 50000 | F50: 2500 | G50: kr.
B51: Pumpestationer i brønde (< 6,25 m2), SRO | C51: 2014 | D51: 10 | E51: 20000 | F51: 2000 | G51: kr.
B52: Pumpestationer i brønde (< 6,25 m2), Konstruktioner | C52: 2014 | D52: 50 | E52: 150000 | F52: 3000 | G52: kr.
B53: Tryksatte minipumpestationer (husstandssystemer) | C53: 2014 | D53: 30 | E53: 200000 | F53: 6666.666667 | G53: kr.
B54: Pumpestationer i brønde (< 6,25 m2), Mek/EL | C54: 2014 | D54: 20 | E54: 14000 | F54: 700 | G54: kr.
B55: Pumpestationer i brønde (< 6,25 m2), Konstruktioner | C55: 2014 | D55: 50 | E55: 175000 | F55: 3500 | G55: kr.
B56: Pumpestationer i brønde (< 6,25 m2), Mek/EL | C56: 2014 | D56: 20 | E56: 75000 | F56: 3750 | G56: kr.
B57: Pumpestationer i brønde (< 6,25 m2), SRO | C57: 2014 | D57: 10 | E57: 50000 | F57: 5000 | G57: kr.
B58: Pumpestationer i brønde (< 6,25 m2), Mek/EL | C58: 2014 | D58: 20 | E58: 70000 | F58: 3500 | G58: kr.
B59: Pumpestationer i brønde (< 6,25 m2), Mek/EL | C59: 2014 | D59: 20 | E59: 22000 | F59: 1100 | G59: kr.
B60: Pumpestationer i brønde (< 6,25 m2), Mek/EL | C60: 2014 | D60: 20 | E60: 22000 | F60: 1100 | G60: kr.
B61: Pumpestationer i brønde (< 6,25 m2), Konstruktioner | C61: 2014 | D61: 50 | E61: 50000 | F61: 1000 | G61: kr.
B62: Pumpestationer i brønde (< 6,25 m2), Mek/EL | C62: 2014 | D62: 20 | E62: 30000 | F62: 1500 | G62: kr.
B63: Pumpestationer i brønde (< 6,25 m2), Konstruktioner | C63: 2014 | D63: 50 | E63: 100000 | F63: 2000 | G63: kr.
B64: Pumpestationer i brønde (< 6,25 m2), Mek/EL | C64: 2014 | D64: 20 | E64: 50000 | F64: 2500 | G64: kr.
B65: Pumpestationer i brønde (< 6,25 m2), SRO | C65: 2014 | D65: 10 | E65: 20000 | F65: 2000 | G65: kr.
B66: Pumpestationer i brønde (< 6,25 m2), Konstruktioner | C66: 2014 | D66: 50 | E66: 150000 | F66: 3000 | G66: kr.
B67: Pumpestationer i brønde (< 6,25 m2), Mek/EL | C67: 2014 | D67: 20 | E67: 75000 | F67: 3750 | G67: kr.
B68: Ø 200 mm < Ledningsnet = Ø 500 mm | C68: 2014 | D68: 75 | E68: 650000 | F68: =E68/D68 -> 8666.666667 | G68: kr.
B69: Ø 200 mm < Ledningsnet = Ø 500 mm | C69: 2014 | D69: 75 | E69: 644000 | F69: 8586.666667 | G69: kr.
B70: Ø 200 mm < Ledningsnet = Ø 500 mm | C70: 2014 | D70: 75 | E70: 100000 | F70: 1333.333333 | G70: kr.
B71: Ø 200 mm < Ledningsnet = Ø 500 mm | C71: 2014 | D71: 75 | E71: 1020000 | F71: 13600 | G71: kr.
B72: Ø 200 mm < Ledningsnet = Ø 500 mm | C72: 2014 | D72: 75 | E72: 2160000 | F72: 28800 | G72: kr.
B73: Ø 200 mm < Ledningsnet = Ø 500 mm | C73: 2014 | D73: 75 | E73: 400000 | F73: 5333.333333 | G73: kr.
B74: Ø 200 mm < Ledningsnet = Ø 500 mm | C74: 2014 | D74: 75 | E74: 200000 | F74: 2666.666667 | G74: kr.
B75: Ø 200 mm < Ledningsnet = Ø 500 mm | C75: 2014 | D75: 75 | E75: 850000 | F75: 11333.33333 | G75: kr.
B76: Beluftningstanke, Konstruktioner | C76: 2014 | D76: 60 | E76: 2400000 | F76: 40000 | G76: kr.
B77: Ø 200 mm < Ledningsnet = Ø 500 mm | C77: 2014 | D77: 75 | E77: 154000 | F77: 2053.333333 | G77: kr.
B78: Pumpestationer i brønde (< 6,25 m2), SRO | C78: 2014 | D78: 10 | E78: 25000 | F78: 2500 | G78: kr.
B79: Mindre renseanlæg < 5.000 PE uden mulighed for opdeling | C79: 2015 | D79: 40 | E79: 305000 | F79: 7625 | G79: kr.
B80: Mindre renseanlæg < 5.000 PE uden mulighed for opdeling | C80: 2015 | D80: 40 | E80: 610000 | F80: 15250 | G80: kr.
B81: Mindre renseanlæg < 5.000 PE uden mulighed for opdeling | C81: 2015 | D81: 40 | E81: 509000 | F81: 12725 | G81: kr.
B82: Mindre renseanlæg < 5.000 PE uden mulighed for opdeling | C82: 2015 | D82: 40 | E82: 1526000 | F82: 38150 | G82: kr.
B83: Sand- og fedtfang, Kontruktioner | C83: 2015 | D83: 60 | E83: 3070000 | F83: =E83/D83 -> 51166.66667 | G83: kr.
B84: Sand- og fedtfang, Mek/EL | C84: 2015 | D84: 20 | E84: 2000000 | F84: 100000 | G84: kr.
B85: Sand- og fedtfang, SRO | C85: 2015 | D85: 10 | E85: 1000000 | F85: 100000 | G85: kr.
B86: Beluftningstanke, Konstruktioner | C86: 2015 | D86: 60 | E86: 5000000 | F86: 83333.33333 | G86: kr.
B87: Beluftningstanke, Mek/EL | C87: 2015 | D87: 20 | E87: 3000000 | F87: 150000 | G87: kr.
B88: Beluftningstanke, SRO | C88: 2015 | D88: 10 | E88: 2000000 | F88: 200000 | G88: kr.
B89: Ledningsnet = Ø 200 mm | C89: 2015 | D89: 75 | E89: 509000 | F89: 6786.666667 | G89: kr.
B90: Ledningsnet = Ø 200 mm | C90: 2015 | D90: 75 | E90: 1017000 | F90: 13560 | G90: kr.
B91: Ledningsnet = Ø 200 mm | C91: 2015 | D91: 75 | E91: 509000 | F91: 6786.666667 | G91: kr.
B92: Ledningsnet = Ø 200 mm | C92: 2015 | D92: 75 | E92: 1000000 | F92: 13333.33333 | G92: kr.
B93: Ledningsnet = Ø 200 mm | C93: 2015 | D93: 75 | E93: 1017000 | F93: 13560 | G93: kr.
B94: Ledningsnet = Ø 200 mm | C94: 2015 | D94: 75 | E94: 500000 | F94: 6666.666667 | G94: kr.
B95: Tryksatte minipumpestationer (husstandssystemer) | C95: 2015 | D95: 30 | E95: 434000 | F95: 14466.66667 | G95: kr.
B96: Ø 200 mm < Ledningsnet = Ø 500 mm | C96: 2015 | D96: 75 | E96: 2627000 | F96: 35026.66667 | G96: kr.
B97: Pumpestationer i brønde (< 6,25 m2), Konstruktioner | C97: 2015 | D97: 50 | E97: 300000 | F97: 6000 | G97: kr.
B98: Pumpestationer i brønde (< 6,25 m2), Mek/EL | C98: 2015 | D98: 20 | E98: 150000 | F98: 7500 | G98: kr.
B99: Pumpestationer i brønde (< 6,25 m2), SRO | C99: 2015 | D99: 10 | E99: 50000 | F99: 5000 | G99: kr.
B100: Ledningsnet = Ø 200 mm | C100: 2015 | D100: 75 | E100: 1017000 | F100: 13560 | G100: kr.
B101: Ledningsnet = Ø 200 mm | C101: 2015 | D101: 75 | E101: 306000 | F101: 4080 | G101: kr.
B102: Pumpestationer i brønde (< 6,25 m2), Konstruktioner | C102: 2015 | D102: 50 | E102: 900000 | F102: 18000 | G102: kr.
B103: Pumpestationer i brønde (< 6,25 m2), Mek/EL | C103: 2015 | D103: 20 | E103: 426000 | F103: 21300 | G103: kr.
B104: Ledningsnet = Ø 200 mm | C104: 2015 | D104: 75 | E104: 10500000 | F104: =E104/D104 -> 140000 | G104: kr.
B105: Ledningsnet = Ø 200 mm | C105: 2015 | D105: 75 | E105: 7970000 | F105: 106266.6667 | G105: kr.
B106: Pumpestationer i brønde (< 6,25 m2), SRO | C106: 2015 | D106: 10 | E106: 200000 | F106: 20000 | G106: kr.
B107: Ø 200 mm < Ledningsnet = Ø 500 mm | C107: 2015 | D107: 75 | E107: 5085000 | F107: 67800 | G107: kr.
B108: Ø 200 mm < Ledningsnet = Ø 500 mm | C108: 2015 | D108: 75 | E108: 509000 | F108: 6786.666667 | G108: kr.
B109: Ø 200 mm < Ledningsnet = Ø 500 mm | C109: 2015 | D109: 75 | E109: 1500000 | F109: 20000 | G109: kr.
B110: Tillæg for 2014 | F110: =SUMIF(C8:C109,"2014",F8:F109) -> 595315 | G110: kr.
B111: Tillæg for 2015 | F111: =SUMIF(C8:C109,"2015",F8:F109) -> 1304730 | G111: kr.
B112: Tillæg i alt | F112: =F110+F111 -> 1900045 | G112: kr.

Sheet 8. 1-1 omkostninger
A1: ='7. Planlagte investeringer'!A1 -> Tønder Spildevand A/S
B4: Fane 8. 1:1 omkostninger
B6: Tillæg for budgetterede 1:1 omkostninger i 2015
B7: Betaling til Forsyningssekretariatet | C7: 33000 | D7: kr.
B8: Spildevandsafgift | C8: 1030860 | D8: kr.
B9: Køb af varer og tjenesteydelser hos et andet prisloftreguleret vandselskab | C9: 507554 | D9: kr.
B10: Digelaget | C10: 170500 | D10: kr.
B11: Ejendomsskatter | C11: 114115 | D11: kr.
B12: Tillæg i alt | C12: =SUM(C7:C11) -> 1856029 | D12: kr.
B15: Tillæg for budgetterede nødvendige udgifter til revisorerklæringer samt ordinært medlemskab af DANVA og FVD i 2015
B16: Betaling for ordinært medlemskab af DANVA/FVD | C16: 112800 | D16: kr.
B17: Betaling for revisorerklæringer | C17: 40000 | D17: kr.
B18: Tillæg i alt | C18: =SUM(C16:C17) -> 152800 | D18: kr.
B21: Korrektion af tillæg for faktiske 1:1 omkostninger (inkl. revisorerklæringer og ordinært medlemskab af DANVA/FVD) i 2013
B22: Selskabets faktiske 1:1 omkostninger mv. i 2013, jf. reguleringsregnskabet | C22: 1705006 | D22: kr.
B23: Tillæg for budgetterede 1:1 omkostninger mv. i prisloft 2013 | C23: 2910490 | D23: kr.
B24: Korrektion af tillæg for budgetterede 1:1 omkostninger mv. i 2013 | C24: =C22-C23 -> -1205484 | D24: kr.

Sheet 9. Miljø- og servicemål
A1: ='8. 1-1 omkostninger'!A1 -> Tønder Spildevand A/S
B4: Fane 9. Driftsomkostninger til miljø- og servicemål
B6: Tillæg for budgetterede driftsomkostninger til miljø- og servicemål i 2015
B7: Ledelsessystem (certificering) | C7: 300000 | D7: kr.
B8: Tillæg i alt | C8: =SUM(C7:C7) -> 300000 | D8: kr.
B11: Korrektion af tillæg for faktiske driftsomkostninger til miljø- og servicemål i 2013
B12: Selskabets faktiske driftsomkostninger til miljø- og servicemål i 2013, jf. reguleringsregnskabet | C12: 0 | D12: kr.
B13: Tillæg for budgetterede driftsomkostninger til miljø- og servicemål i prisloft 2013 | C13: 0 | D13: kr.
B14: Korrektion af tillæg for budgetterede driftsomkostninger til miljø- og servicemål i 2013 | C14: =C12-C13 -> 0 | D14: kr.

Sheet 10. Klimatilpasning
A1: ='9. Miljø- og servicemål'!A1 -> Tønder Spildevand A/S
B4: Fane 10. Medfinansiering af klimatilpasningsprojekter
B7: Tillæg for budgetterede omkostninger til medfinansiering af klimatilpasningsprojekter i 2015
C8: 0 | D8: kr.
B9: Tillæg i alt | C9: =SUM(C8:C8) -> 0 | D9: kr.
B12: Korrektion af tillæg for faktiske omkostninger til medfinansiering af klimatilpasningsprojekter i 2013
B13: Selskabets faktiske driftsomkostninger til klimatilpasningsprojekter i 2013, jf. reguleringsregnskabet | C13: 0 | D13: kr.
B14: Tillæg for budgetterede driftsomkostninger til klimatilpasningsprojekter i prisloft 2013 | C14: 0 | D14: kr.
B15: Korrektion af tillæg for budgetterede omkostninger til klimatilpasningsprojekter i 2013 | C15: =C13-C14 -> 0 | D15: kr.

Sheet 11. Nettofinansielle poster
A1: ='10. Klimatilpasning'!A1 -> Tønder Spildevand A/S
B4: Fane 11. Nettofinansielle poster
B6: Tillæg for budgetterede nettofinansielle poster i 2015
B7: Budgetterede renteudgifter og gebyrer i 2015 | C7: 1464213 | D7: kr.
B8: Budgetterede renteindtægter i 2015 | C8: 17114 | D8: kr.
B9: Tillæg/fradrag i alt | C9: =C7-C8 -> 1447099 | D9: kr.
B12: Korrektion af tillæg for faktiske nettofinansielle poster i 2013
B13: Selskabets faktiske nettofinansielle poster i 2013, jf. reguleringsregnskabet | C13: 1447099 | D13: kr.
B14: Tillæg for budgetterede nettofinansielle poster i prisloft 2013 | C14: 412000 | D14: kr.
B15: Korrektion af tillæg for budgetterede nettofinansielle poster i 2013 | C15: =C13-C14 -> 1035099 | D15: kr.

Sheet 12. Over- eller underdækning
A1: ='11. Nettofinansielle poster'!A1 -> Tønder Spildevand A/S
B4: Fane 12. Over- eller underdækning til og med 2010
B6: Tillæg/fradrag for over- eller underdækning til og med 2010
B7: Opgjort over- eller underdækning per 31. december 2010 | C7: -8712050 | D7: kr.
B8: Heraf beløb indregnet i prislofterne for 2011 - 2014 | C8: -4278089.762 | D8: kr.
B9: Endnu ikke indregnet over- eller underdækning | C9: =C7-C8 -> -4433960.238 | D9: kr.
B10: Resterende indregningsperiode (fastsat i prisloftet for 2012) | C10: 6 | D10: år
B11: Tillæg/fradrag i alt | C11: =IF(C7=0,0,C9/C10) -> -738993.373 | D11: kr.

Sheet 13. Kontrol med indtægtsrammen
A1: ='12. Over- eller underdækning'!A1 -> Tønder Spildevand A/S
B4: Fane 13. Korrektion for overholdelse af indtægtsrammen i prisloftet for 2013
B6: Samlet opgørelse vedrørende overholdelse af indtægtsrammen i prisloftet for 2013
B7: Indtægtsramme i prisloftet for 2013 | E7: 78872529.88 | F7: kr.
B8: Ikke anvendt likviditet vedrørende investeringer i 2013
B9: Tillæg for historiske investeringer | C9: 40071193.96 | D9: kr.
B10: Tillæg for gennemførte investeringer i 2011 | C10: 1158588 | D10: kr.
B11: Korrektion af tillæg for planlagte investeringer i 2011 | C11: 392869 | D11: kr.
B12: Tillæg for planlagte investeringer i 2012 og 2013 | C12: 1571527 | D12: kr.
B13: Indtægter fra tilslutningsbidrag | C13: 8844761 | D13: kr.
B14: Indtægter fra salg af anlægsaktiver | C14: 0 | D14: kr.
B15: Erstatninger vedr. anlægsaktiver mv. | C15: 0 | D15: kr.
B16: Ekstraordinær effektiviseringsgevinst anvendt til investeringer | C16: 0 | D16: kr.
B17: Udgifter til investeringer | C17: -52038939 | D17: kr.
B18: Ikke anvendt likviditet vedr. investeringer i alt | C18: =SUM(C9:C17) -> -0.04304929823 | D18: kr. | E18: =IF(C18<0,0,-C18) -> 0 | F18: kr.
B19: Ekstraordinære effektiviseringsgevinster anvendt til takstnedsættelse
B20: Ekstraordinær effektiviseringsgevinst anvendt til takstnedsættelse | C20: 0 | D20: kr. | E20: =-C20 -> 0 | F20: kr.
B21: Korrektion af ikke opkrævet tillæg fra 2011 i prisloft 2013
B22: Korrektion af ikke opkrævet tillæg fra 2011 i prisloft 2013 | C22: 0 | D22: kr. | E22: =-C22 -> 0 | F22: kr.
B23: Indtægter fra primære aktiviteter mv.
B24: Indtægter fra kubikmetertakster, faste takster, særbidrag, målergebyrer samt andre takster og gebyrer | C24: 65232020 | D24: kr.
B25: Fordeling af indtægt efter § 6, stk. 2. | C25: 4243421.6 | D25: kr.
B26: Andre indtægter i prisloftåret, som selskabet har opnået i forbindelse med eller som følge af selskabets primære aktiviteter | C26: 0 | D26: kr.
B27: Indtægter fra primære aktiviteter mv. i alt | C27: =SUM(C24:C26) -> 69475441.6 | D27: kr. | E27: =-C27 -> -69475441.6 | F27: kr.
B28: Tillæg/fradrag i prisloftet for 2015 i alt | E28: =E7+E18+E20+E22+E27 -> 9397088.28 | F28: kr.
B32: Oversigt over ekstraordinære effektiviseringsgevinster
C34: 2012 | E34: 2013 | G34: 2014 | I34: 2015 | K34: 2016
B35: Indhentet ekstraordinær effektiviseringsgevinst | C35: 0 | D35: kr. | E35: 0 | F35: kr. | H35: kr. | J35: kr. | L35: kr.
B36: Gevinst anvendt til investeringer | C36: 0 | D36: kr. | E36: 0 | F36: kr. | H36: kr. | J36: kr. | L36: kr.
B37: Gevinst anvendt til takstnedsættelse | C37: 0 | D37: kr. | E37: 0 | F37: kr. | H37: kr. | J37: kr. | L37: kr.
B38: Korrektion for effektiviseringsgevinst der ikke er anvendt inden 4 år | C38: 0 | D38: kr. | E38: 0 | F38: kr. | H38: kr. | J38: kr. | K38: =IF(C39>SUM(E36:I37),C39-SUM(E36:I37),0)*-1 -> 0 | L38: kr.
B39: Resterende gevinst | C39: =C35-C36-C37 -> 0 | D39: kr. | E39: =C39+E35-E36-E37 -> 0 | F39: kr. | G39: =E39+G35-G36-G37 -> 0 | H39: kr. | I39: =G39+I35-I36-I37 -> 0 | J39: kr. | K39: =K35-K36-K37+K38+I39 -> 0 | L39: kr.
